fUST/lending_fUST_20240430
["ID","MTS","AMOUNT","RATE_DAILY","PERIOD"]
[324919877,1714419040234,-152.41297352,0.00036477,7]
[324919879,1714419040243,-666.0,0.00036621,120]
[324919881,1714419040252,-666.0,0.00036621,120]
[324919883,1714419040261,-666.0,0.00036621,120]
[324919885,1714419040270,-666.0,0.00036621,120]
[324919887,1714419040280,-666.0,0.00036621,120]
[324919889,1714419040289,-666.0,0.00036621,120]
[324919891,1714419040298,-666.0,0.00036621,120]
[324919893,1714419040307,-220.87568685,0.00036621,120]
[324919895,1714419040316,-500.0,0.00036621,10]
[324919897,1714419040326,-152.41297352,0.00036863,7]
[324919899,1714419040335,-152.41297352,0.00036942,7]
[324919901,1714419040344,-1139.85431691,0.00036986,8]
[324919903,1714419040353,-3512.35610251,0.00037,2]
[324919905,1714419040363,-153.7952465,0.0003718,2]
[324919907,1714419040371,-162.0,0.00037397,2]
[324919909,1714419040381,-3000.0,0.000375,32]
[324919911,1714419040391,-3000.0,0.0003751,32]
[324919913,1714419040399,-3000.0,0.0003752,32]
[324919915,1714419040408,-3000.0,0.0003753,32]
[324919917,1714419040417,-434.54,0.00037534,2]
[324919919,1714419040426,-3000.0,0.0003754,32]
[324919921,1714419040435,-3000.0,0.0003755,32]
[324919923,1714419040444,-3000.0,0.0003756,32]
[324919925,1714419040454,-3000.0,0.0003757,32]
[324919927,1714419040463,-3000.0,0.0003758,32]
[324919928,1714419040472,-3000.0,0.0003759,32]
[324919930,1714419040482,-3000.0,0.000376,32]
[324919932,1714419040491,-3000.0,0.0003761,32]
[324919935,1714419040500,-3000.0,0.0003762,32]
[324919936,1714419040510,-3000.0,0.0003763,32]
[324919938,1714419040519,-3000.0,0.0003764,32]
[324919940,1714419040528,-3000.0,0.0003765,32]
[324919942,1714419040537,-3000.0,0.0003766,32]
[324919944,1714419040546,-156.63256101,0.00037799,7]
[324919946,1714419040555,-156.63256101,0.00037887,7]
[324919949,1714419040565,-152.41297352,0.00037925,7]
[324919951,1714419040574,-500.0,0.00037991,10]
[324919953,1714419040583,-5009.79512819,0.00038,2]
[324919954,1714419040593,-153.0,0.00038002,2]
[324919955,1714419040602,-151.64504333,0.00038212,7]
[324919956,1714419040611,-156.18617838,0.00038862,7]
[324919958,1714419040622,-153.79833288,0.00038905,7]
[324919960,1714419040631,-269.0,0.00039,2]
[324919963,1714419040641,-269.0,0.00039,2]
[324919964,1714419040650,-1331.33632884,0.00039004,11]
[324919965,1714419040660,-152.41297352,0.00039114,7]
[324919966,1714419040672,-163.0,0.00039267,14]
[324919967,1714419040682,-156.63256101,0.00039302,7]
[324919968,1714419040691,-156.63256101,0.00039312,7]
[324919969,1714419040700,-500.0,0.00039361,10]
[324919970,1714419040712,-152.41297356,0.00039362,7]
[324919971,1714419040722,-232.10092761,0.00039397,30]
[324919972,1714419040731,-1452.51193783,0.00039402,11]
[324919973,1714419040740,-153.7983329,0.00039551,7]
[324919974,1714419040750,-156.63256101,0.00039552,7]
[324919975,1714419040759,-588.0,0.000398,2]
[324919976,1714419040768,-151.47429952,0.00039829,7]
[324919977,1714419040777,-156.63256101,0.00039839,7]
[324919978,1714419040786,-1159.84144778,0.0003988,120]
[324919979,1714419040796,-151.47429955,0.00039934,7]
[324919980,1714419040805,-2710.87,0.00039999,2]
[324919981,1714419040814,-2710.87,0.00039999,2]
[324919982,1714419040823,-2710.87,0.00039999,2]
[324919983,1714419040832,-2710.87,0.00039999,2]
[324919984,1714419040841,-2710.87,0.00039999,2]
[324919985,1714419040850,-2710.87,0.00039999,2]
[324919986,1714419040859,-2710.87,0.00039999,2]
[324919987,1714419040868,-2710.87,0.00039999,2]
[324919988,1714419040877,-2710.87,0.00039999,2]
[324919989,1714419040886,-2710.87,0.00039999,2]
[324919990,1714419040895,-27456.57615908,0.0004,15]
[324919991,1714419040905,-2000.0,0.0004,2]
[324919992,1714419040914,-4253.66286157,0.0004,4]
[324919993,1714419040923,-638.45471795,0.0004,2]
[324919994,1714419040932,-154.78330338,0.0004,68]
[324919995,1714419040941,-6073.25093483,0.0004,20]
[324919997,1714419040950,-2401.59068717,0.0004,2]
[324919999,1714419040972,-995.16145114,0.0004,10]
[324920001,1714419040981,-16270.35773535,0.0004,120]
[324920003,1714419040990,-154.78330338,0.0004,15]
[324920005,1714419040999,-1452.47576498,0.0004,4]
[324920007,1714419041008,-7480.50380699,0.0004,2]
[324920009,1714419041017,-56045.77280973,0.0004,7]
[324920011,1714419041025,-2707.999999,0.0004,30]
[324920013,1714419041034,-1590.52958367,0.0004,15]
[324920014,1714419041043,-4804.0521499,0.0004,2]
[324920016,1714419041052,-359.6913144,0.0004,2]
[324920018,1714419041061,-1089.44403781,0.0004,2]
[324920019,1714419041071,-210.13266618,0.0004,120]
[324920020,1714419041080,-379.95934411,0.0004,120]
[324920022,1714419041089,-153.05,0.0004,120]
[324920024,1714419041098,-154.78330338,0.0004,2]
[324920025,1714419041107,-631.41475046,0.0004,120]
[324920027,1714419041116,-151.64504333,0.00040046,30]
[324920028,1714419041125,-151.13418049,0.00040047,2]
[324920029,1714419041134,-151.64504337,0.00040053,30]
[324920031,1714419041143,-150.0,0.00040099,2]
[324920033,1714419041153,-13772.3960811,0.0004013,2]
[324920034,1714419041162,-156.63256101,0.00040206,30]
[324920035,1714419041171,-156.63256101,0.00040226,30]
[324920036,1714419041181,-156.63256104,0.00040252,30]
[324920037,1714419041190,-177.0,0.000404,17]
[324920038,1714419041199,-417.0,0.00040534,2]
[324920039,1714419041214,-570.503541,0.00040548,2]
[324920040,1714419041224,-183.17177,0.00040548,2]
[324920041,1714419041232,-190.110412,0.00040548,2]
[324920042,1714419041241,-361.530624,0.00040548,2]
[324920043,1714419041250,-150.0,0.00040574,2]
[324920044,1714419041260,-150.0,0.00040574,2]
[324920045,1714419041269,-150.0,0.00040574,2]
[324920046,1714419041278,-500.0,0.00040731,10]
[324920047,1714419041287,-44444.0,0.0004099,5]
[324920048,1714419041296,-252.6859923,0.00041,2]
[324920049,1714419041306,-5000.0,0.00041,120]
[324920050,1714419041315,-189.06259956,0.00041,2]
[324920051,1714419041324,-502.45169725,0.00041,30]
[324920052,1714419041334,-200.0,0.00041023,120]
[324920053,1714419041343,-150.0,0.00041046,2]
[324920054,1714419041353,-150.0,0.00041047,2]
[324920055,1714419041363,-2525.30000001,0.0004109,30]
[324920056,1714419041372,-178.0504269,0.00041096,2]
[324920057,1714419041381,-1237.7995211,0.00041096,7]
[324920058,1714419041391,-400.0,0.00041096,30]
[324920059,1714419041400,-1116.6496876,0.00041096,4]
[324920060,1714419041410,-175290.00946481,0.00041096,120]
[324920061,1714419041419,-550.8267117,0.00041096,31]
[324920062,1714419041428,-550.8267117,0.00041096,31]
[324920063,1714419041437,-550.8267117,0.00041096,31]
[324920064,1714419041447,-550.8267117,0.00041096,31]
[324920065,1714419041462,-550.8267117,0.00041096,31]
[324920066,1714419041471,-550.8267117,0.00041096,31]
[324920067,1714419041481,-550.8267117,0.00041096,31]
[324920068,1714419041490,-550.8267117,0.00041096,31]
[324920069,1714419041498,-550.8267117,0.00041096,31]
[324920070,1714419041508,-550.8267117,0.00041096,31]
[324920071,1714419041517,-550.8267117,0.00041096,31]
[324920072,1714419041526,-550.8267117,0.00041096,31]
[324920073,1714419041534,-550.8267117,0.00041096,31]
[324920074,1714419041544,-550.8267117,0.00041096,31]
[324920075,1714419041553,-550.8267117,0.00041096,31]
[324920076,1714419041562,-550.8267117,0.00041096,31]
[324920077,1714419041571,-550.8267117,0.00041096,31]
[324920078,1714419041581,-550.8267117,0.00041096,31]
[324920079,1714419041693,-550.8267117,0.00041096,31]
[324920080,1714419041708,-550.8267117,0.00041096,31]
[324920081,1714419041717,-550.8267117,0.00041096,31]
[324920082,1714419041727,-550.8267117,0.00041096,31]
[324920083,1714419041736,-550.8267117,0.00041096,31]
[324920084,1714419041746,-550.8267117,0.00041096,31]
[324920085,1714419041756,-550.8267117,0.00041096,31]
[324920086,1714419041766,-550.8267117,0.00041096,31]
[324920087,1714419041775,-550.8267117,0.00041096,31]
[324920088,1714419041785,-550.8267117,0.00041096,31]
[324920089,1714419041795,-550.8267117,0.00041096,31]
[324920090,1714419041804,-550.8267117,0.00041096,31]
[324920091,1714419041814,-550.8267117,0.00041096,31]
[324920092,1714419041823,-550.8267117,0.00041096,31]
[324920093,1714419041833,-550.8267117,0.00041096,31]
[324920094,1714419041842,-550.8267117,0.00041096,31]
[324920095,1714419041851,-550.8267117,0.00041096,31]
[324920096,1714419041862,-550.8267117,0.00041096,31]
[324920097,1714419041871,-550.8267117,0.00041096,31]
[324920098,1714419041880,-550.8267117,0.00041096,31]
[324920099,1714419041890,-150.0,0.00041099,60]
[324920100,1714419041899,-404.099999,0.000414,15]
[324920101,1714419041908,-165.569626,0.00041553,2]
[324920102,1714419041918,-3864.038183,0.00041553,120]
[324920103,1714419041928,-14787.78197068,0.00041558,7]
[324920104,1714419041937,-104376.99002437,0.00041558,90]
[324920105,1714419042319,-295.7332971,0.000398,4]
[324920106,1714419042329,-10748.75978675,0.00041558,90]
[324920115,1714419043802,-13863.70544497,0.00041558,90]
[324920133,1714419188340,154.78330338,9.999e-05,2]
[324920134,1714419341015,363.95014905,9.999e-05,2]
[324920135,1714419359010,274.5045689,9.999e-05,2]
[324920153,1714420030151,-300.0,0.00014728,2]
[324920154,1714420030172,-420.0,0.00016201,2]
[324920155,1714420030194,-587.0,0.00017821,2]
[324920156,1714420030213,-166.666666,0.00018116,2]
[324920157,1714420030235,-8444.12323307,0.00018364,2]
[324920164,1714420158124,-300.0,0.00018363,2]
[324920165,1714420158146,-354.29620684,0.00018364,2]
[324920166,1714420170126,-416.89581974,0.00018364,2]
[324920292,1714420238030,-300.0,0.00018363,2]
[324920294,1714420238044,-15684.68474035,0.00018364,2]
[324920296,1714420238053,-1850.87906513,0.00018718,2]
[324920298,1714420238062,-1139.85431691,0.000188,2]
[324920300,1714420238071,-638.74,0.00018818,2]
[324920302,1714420238081,-12172.572259,0.00018855,2]
[324920304,1714420238090,-980.87076826,0.000189,2]
[324920306,1714420238099,-155.09652892,0.00019,2]
[324920308,1714420238109,-7934.04214632,0.00019,2]
[324920310,1714420238119,-160.096866,0.00019178,2]
[324920312,1714420238128,-160.579336,0.00019178,2]
[324920315,1714420238137,-5460.61782475,0.0002,2]
[324920317,1714420238147,-420.0,0.00020199,2]
[324920319,1714420238157,-361.91629684,0.00020912,2]
[324920321,1714420238166,-265.1468592,0.00020912,2]
[324920323,1714420238175,-155.69726499,0.00020912,2]
[324920325,1714420238184,-164.04462217,0.00020912,2]
[324920327,1714420238193,-155.87018974,0.00020912,2]
[324920329,1714420238203,-240.49274537,0.00020912,2]
[324920331,1714420238213,-945.7056575,0.00020912,2]
[324920333,1714420238222,-243.20278432,0.00020912,2]
[324920335,1714420238232,-7870.62977803,0.00020912,2]
[324920337,1714420238241,-706.77782139,0.00020912,2]
[324920339,1714420238250,-215.76996313,0.00020912,2]
[324920341,1714420238259,-526.13833593,0.00020912,2]
[324920343,1714420238268,-600.0,0.00020912,2]
[324920345,1714420238278,-154.86060689,0.00020912,2]
[324920347,1714420238287,-6726.94151367,0.00020913,2]
[324920349,1714420238297,-159.19819518,0.00022,2]
[324920351,1714420238306,-587.0,0.00022219,2]
[324920353,1714420238315,-160.463356,0.00022466,2]
[324920355,1714420238324,-549.250702,0.00022466,2]
[324920357,1714420238333,-157.77106,0.00022466,2]
[324920359,1714420238343,-714.0781204,0.00023,2]
[324920361,1714420238352,-620.0000204,0.00023408,2]
[324920363,1714420238361,-980.87076826,0.000239,2]
[324920365,1714420238370,-731.0,0.00024441,2]
[324920367,1714420238380,-215.9047071,0.00024577,2]
[324920369,1714420238389,-620.00000102,0.00024578,2]
[324920371,1714420238398,-1139.85431691,0.00024671,2]
[324920373,1714420238407,-491.08646096,0.00025235,2]
[324920375,1714420238417,-167.65427087,0.00025325,2]
[324920377,1714420238427,-153.93095889,0.00025525,2]
[324920379,1714420238437,-152.83597298,0.00025528,2]
[324920381,1714420238447,-152.83597298,0.00025572,2]
[324920383,1714420238457,-152.83597298,0.00025613,2]
[324920385,1714420238466,-152.19674562,0.00025649,2]
[324920387,1714420238475,-620.00000005,0.00025807,2]
[324920389,1714420238484,-491.08646096,0.00026,2]
[324920391,1714420238494,-167.65427087,0.00026018,2]
[324920393,1714420238504,-156.18617837,0.0002607,2]
[324920395,1714420238513,-167.65427087,0.00026239,2]
[324920397,1714420238523,-152.19674562,0.00026374,2]
[324920399,1714420238532,-152.83597298,0.00026419,2]
[324920401,1714420238541,-2000.0,0.000266,2]
[324920403,1714420238550,-2000.0,0.000266,2]
[324920405,1714420238559,-2000.0,0.000266,2]
[324920407,1714420238569,-167.65427087,0.0002675,2]
[324920409,1714420238578,-167.65427087,0.00026791,2]
[324920411,1714420238587,-152.83597298,0.00026799,2]
[324920413,1714420238596,-167.65427087,0.00026804,2]
[324920415,1714420238605,-8527.63031331,0.00027,2]
[324920417,1714420238615,-156.18617837,0.00027045,2]
[324920419,1714420238624,-620.0,0.00027098,2]
[324920421,1714420238633,-152.19674562,0.00027114,2]
[324920423,1714420238643,-166.666666,0.00027397,2]
[324920425,1714420238652,-491.08646096,0.0002742,2]
[324920427,1714420238661,-491.08646096,0.00027582,2]
[324920429,1714420238670,-491.08646096,0.00027583,2]
[324920431,1714420238680,-2405.9576,0.00027944,30]
[324920433,1714420238689,-491.08646096,0.00027969,2]
[324920435,1714420238698,-220.92131871,0.00028,2]
[324920437,1714420238709,-166.666666,0.00028038,2]
[324920439,1714420238717,-152.83597298,0.00028081,2]
[324920441,1714420238727,-167.65427087,0.000281,2]
[324920443,1714420238736,-491.08646096,0.00028123,2]
[324920445,1714420238745,-167.65427087,0.00028477,2]
[324920447,1714420238754,-160.463356,0.00028493,2]
[324920449,1714420238763,-549.250702,0.00028493,2]
[324920451,1714420238772,-180.74166293,0.00028549,2]
[324920453,1714420238781,-152.83597298,0.00028633,2]
[324920455,1714420238791,-166.666666,0.00028679,2]
[324920457,1714420238800,-153.93095889,0.00028724,2]
[324920459,1714420238810,-34984.96254174,0.00028742,3]
[324920461,1714420238822,-4109.66745826,0.00028742,3]
[324920463,1714420238831,-491.08646096,0.00028752,2]
[324920465,1714420238841,-157.77106,0.00028828,2]
[324920467,1714420238850,-491.08646096,0.00029024,2]
[324920469,1714420238859,-153.93095889,0.00029025,2]
[324920471,1714420238869,-1517.06011,0.000291,7]
[324920473,1714420238878,-152.83597298,0.00029124,2]
[324920475,1714420238887,-152.19674562,0.00029126,2]
[324920477,1714420238896,-491.08646096,0.00029282,2]
[324920479,1714420238905,-166.666666,0.00029321,2]
[324920481,1714420238915,-46913.55,0.00029462,3]
[324920483,1714420238924,-153.93095889,0.00029472,2]
[324920485,1714420238934,-1000.0,0.000296,7]
[324920487,1714420238943,-152.19674562,0.0002969,2]
[324920489,1714420238952,-166.666666,0.00029962,2]
[324920491,1714420238962,-154.78330338,0.0003,4]
[324920493,1714420238971,-154.78330338,0.0003,4]
[324920495,1714420238981,-154.78330338,0.0003,4]
[324920497,1714420238990,-1366.26453115,0.0003,4]
[324920499,1714420238999,-272.0,0.0003,2]
[324920501,1714420239008,-1000.0,0.000301,7]
[324920503,1714420239017,-167.65427087,0.00030109,7]
[324920505,1714420239026,-153.93095889,0.00030187,7]
[324920507,1714420239038,-1139.85431691,0.00030543,5]
[324920509,1714420239048,-1000.0,0.000306,7]
[324920511,1714420239057,-166.666666,0.00030603,2]
[324920513,1714420239066,-152.83597298,0.00030837,7]
[324920516,1714420239075,-491.08646096,0.00030857,7]
[324920517,1714420239085,-167.65427087,0.00030881,7]
[324920519,1714420239095,-152.83597298,0.00031048,7]
[324920521,1714420239104,-1000.0,0.000311,7]
[324920524,1714420239117,-491.08646096,0.00031364,7]
[324920526,1714420239128,-491.08646096,0.00031566,7]
[324920528,1714420239137,-625.9,0.00031584,120]
[324920530,1714420239146,-153.34957969,0.00031584,2]
[324920532,1714420239155,-153.34957969,0.00031584,2]
[324920534,1714420239164,-153.34957969,0.00031584,2]
[324920536,1714420239173,-153.34957969,0.00031584,2]
[324920538,1714420239182,-977.55062889,0.00031584,2]
[324920540,1714420239191,-1000.0,0.000316,7]
[324920542,1714420239200,-491.08646096,0.00031601,7]
[324920543,1714420239209,-167.65427087,0.0003163,7]
[324920545,1714420239219,-158.20865679,0.00031686,7]
[324920548,1714420239229,-167.65427087,0.00031698,7]
[324920549,1714420239239,-491.08646096,0.00031774,7]
[324920551,1714420239250,-638.7649893,0.00032,4]
[324920554,1714420239262,-153.93095889,0.00032044,7]
[324920555,1714420239271,-491.08646096,0.0003232,7]
[324920558,1714420239279,-152.83597298,0.00032677,7]
[324920559,1714420239289,-180.74166292,0.00032852,2]
[324920561,1714420239298,-666.0,0.00032876,120]
[324920563,1714420239307,-666.0,0.00032876,120]
[324920565,1714420239316,-666.0,0.00032876,120]
[324920567,1714420239326,-666.0,0.00032876,120]
[324920569,1714420239335,-666.0,0.00032876,120]
[324920571,1714420239344,-666.0,0.00032876,120]
[324920573,1714420239353,-666.0,0.00032876,120]
[324920575,1714420239362,-220.87568685,0.00032876,120]
[324920577,1714420239371,-500.0,0.00032876,10]
[324920579,1714420239380,-167.65427087,0.00032961,7]
[324920581,1714420239389,-152.19674562,0.00033,7]
[324920584,1714420239399,-272.0,0.00033,2]
[324920586,1714420239408,-153.93095889,0.00033062,7]
[324920587,1714420239417,-167.65427087,0.00033085,7]
[324920589,1714420239426,-491.08646096,0.00033289,7]
[324920591,1714420239436,-491.08646096,0.00033344,7]
[324920594,1714420239445,-167.65427087,0.00033405,7]
[324920596,1714420239454,-153.93095889,0.00033597,7]
[324920598,1714420239464,-156.18617837,0.00033662,7]
[324920599,1714420239473,-2000.0,0.000339,2]
[324920601,1714420239482,-167.65427087,0.00033928,7]
[324920603,1714420239491,-466.35092847,0.00034,4]
[324920605,1714420239500,-16228.24523147,0.00034,60]
[324920607,1714420239509,-156.18617837,0.00034198,7]
[324920609,1714420239518,-152.83597298,0.00034207,7]
[324920611,1714420239527,-500.0,0.00034246,10]
[324920613,1714420239537,-152.83597298,0.00034278,7]
[324920615,1714420239546,-152.19674562,0.00034357,7]
[324920617,1714420239555,-160.463356,0.00034521,2]
[324920619,1714420239564,-549.250702,0.00034521,2]
[324920621,1714420239573,-152.83597298,0.00034526,7]
[324920624,1714420239583,-491.08646096,0.00034675,7]
[324920626,1714420239592,-156.18617837,0.0003479,7]
[324920627,1714420239602,-152.19674562,0.00034794,7]
[324920630,1714420239612,-1329.78267311,0.00035,4]
[324920632,1714420239621,-555.39795402,0.00035,10]
[324920634,1714420239631,-154.78330338,0.00035,4]
[324920636,1714420239640,-1307.89147106,0.00035,7]
[324920638,1714420239649,-1537.50536275,0.00035,2]
[324920640,1714420239658,-5914.65556104,0.00035,4]
[324920642,1714420239668,-12756.78468986,0.00035,4]
[324920644,1714420239677,-791.81686347,0.00035,30]
[324920646,1714420239686,-961.68740692,0.00035,30]
[324920648,1714420239695,-152.19674562,0.00035123,7]
[324920650,1714420239704,-153.93095889,0.00035187,7]
[324920652,1714420239715,-157.77106,0.0003519,2]
[324920654,1714420239724,-167.65427087,0.00035215,7]
[324920656,1714420239734,-491.08646096,0.00035233,7]
[324920658,1714420239744,-156.18617837,0.00035286,7]
[324920660,1714420239753,-500.0,0.00035616,10]
[324920662,1714420239762,-3864.038183,0.00035616,120]
[324920664,1714420239771,-156.18617837,0.00035746,7]
[324920666,1714420239782,-156.18617837,0.00035772,7]
[324920668,1714420239791,-154.78330338,0.0003589,2]
[324920670,1714420239800,-491.08646096,0.00035948,7]
[324920672,1714420239809,-272.0,0.00036,2]
[324920674,1714420239818,-152.83597298,0.00036027,7]
[324920676,1714420239826,-491.08646096,0.00036238,7]
[324920678,1714420239835,-152.83597298,0.00036279,7]
[324920680,1714420239843,-1139.85431691,0.00036414,7]
[324920682,1714420239852,-150.77383924,0.00036495,2]
[324920684,1714420239860,-152.19674562,0.00036511,7]
[324920686,1714420239869,-491.08646096,0.00036715,7]
[324920688,1714420239878,-491.08646096,0.00036825,7]
[324920690,1714420239888,-500.0,0.00036986,10]
[324920692,1714420239897,-3512.35610251,0.00037,2]
[324920694,1714420239906,-301.54767848,0.00037109,4]
[324920695,1714420239915,-491.08646096,0.00037121,7]
[324920696,1714420239925,-180.74166292,0.00037155,2]
[324920697,1714420239934,-167.65427087,0.00037235,7]
[324920698,1714420240059,-491.08646096,0.00037283,7]
[324920699,1714420240069,-3000.0,0.000375,32]
[324920700,1714420240079,-3000.0,0.0003751,32]
[324920702,1714420240087,-3000.0,0.0003752,32]
[324920703,1714420240094,-3000.0,0.0003753,32]
[324920705,1714420240100,-491.08646096,0.00037534,7]
[324920707,1714420240108,-3000.0,0.0003754,32]
[324920709,1714420240119,-152.83597298,0.00037546,7]
[324920711,1714420240128,-3000.0,0.0003755,32]
[324920713,1714420240134,-3000.0,0.0003756,32]
[324920715,1714420240142,-3000.0,0.0003757,32]
[324920718,1714420240151,-3000.0,0.0003758,32]
[324920720,1714420240160,-167.65427087,0.00037581,7]
[324920722,1714420240168,-3000.0,0.0003759,32]
[324920724,1714420240176,-3000.0,0.000376,32]
[324920726,1714420240183,-3000.0,0.0003761,32]
[324920728,1714420240190,-3000.0,0.0003762,32]
[324920730,1714420240199,-3000.0,0.0003763,32]
[324920732,1714420240208,-3000.0,0.0003764,32]
[324920735,1714420240217,-434.54,0.00037647,2]
[324920737,1714420240226,-150.0,0.00037647,2]
[324920739,1714420240234,-210.983,0.00037647,2]
[324920741,1714420240241,-224.837,0.00037647,2]
[324920743,1714420240249,-3000.0,0.0003765,32]
[324920744,1714420240256,-3000.0,0.0003766,32]
[324920746,1714420240262,-603.09535696,0.00037732,7]
[324920748,1714420240270,-152.19674569,0.00037824,7]
[324920751,1714420240279,-153.7952465,0.00037903,2]
[324920753,1714420240287,-5009.79512819,0.00038,2]
[324920755,1714420240294,-156.18617837,0.00038047,7]
[324920757,1714420240302,-152.83597298,0.00038081,7]
[324920759,1714420240310,-167.65427087,0.00038086,7]
[324920761,1714420240319,-491.08646096,0.00038117,7]
[324920763,1714420240328,-167.65427087,0.00038341,7]
[324920766,1714420240336,-500.0,0.00038356,10]
[324920768,1714420240344,-400.0,0.00038356,2]
[324920769,1714420240351,-166.74380429,0.00038366,4]
[324920771,1714420240358,-156.18617837,0.00038427,7]
[324920773,1714420240365,-152.83597298,0.00038433,7]
[324920775,1714420240372,-152.83597298,0.00038628,7]
[324920777,1714420240379,-167.65427087,0.000389,7]
[324920779,1714420240387,-167.65427087,0.00038919,7]
[324920781,1714420240395,-5000.0,0.00039,5]
[324920783,1714420240404,-167.65427087,0.00039251,7]
[324920785,1714420240412,-232.10092761,0.00039397,30]
[324920788,1714420240420,-418.23752853,0.000394,2]
[324920790,1714420240429,-418.23752853,0.000394,2]
[324920792,1714420240437,-418.23752853,0.000394,2]
[324920793,1714420240444,-418.23752853,0.000394,2]
[324920795,1714420240452,-10000.0,0.00039452,4]
[324920797,1714420240460,-500.0,0.00039726,10]
[324920800,1714420240469,-156.18617837,0.00039741,7]
[324920802,1714420240476,-1159.84144778,0.0003988,120]
[324920804,1714420240484,-167.65427087,0.00039957,7]
[324920806,1714420240493,-4253.66286157,0.0004,4]
[324920808,1714420240501,-9742.08348567,0.0004,120]
[324920810,1714420240509,-995.16145114,0.0004,10]
[324920812,1714420240516,-733.0,0.0004,4]
[324920814,1714420240522,-153.04,0.0004,120]
[324920816,1714420240531,-154.78330338,0.0004,2]
[324920817,1714420240538,-631.41475046,0.0004,120]
[324920820,1714420240546,-153.93095889,0.00040177,30]
[324920821,1714420240553,-491.08646096,0.00040227,30]
[324920824,1714420240562,-1615.04480687,0.0004024,30]
[324920826,1714420240569,-152.83597298,0.00040471,30]
[324920828,1714420240577,-200.0,0.00040485,120]
[324920830,1714420240585,-153.0,0.00040493,2]
[324920832,1714420240592,-588.0,0.000405,30]
[324920833,1714420240599,-1000.0,0.00040534,3]
[324920836,1714420240607,-160.463356,0.00040548,2]
[324920838,1714420240615,-549.250702,0.00040548,2]
[324920840,1714420240622,-167.65427087,0.00040563,30]
[324920842,1714420240631,-167.65427087,0.00040568,30]
[324920844,1714420240640,-167.65427087,0.0004064,30]
[324920846,1714420240647,-417.0,0.00040647,2]
[324920848,1714420240654,-150.0,0.00040647,2]
[324920849,1714420240661,-150.0,0.00040647,2]
[324920851,1714420240668,-150.0,0.00040647,2]
[324920853,1714420240676,-152.83597298,0.00040714,30]
[324920855,1714420240684,-152.83597298,0.00040781,30]
[324920858,1714420240693,-167.65427087,0.00040869,30]
[324920860,1714420240702,-150.0,0.00040999,2]
[324920862,1714420240711,-252.6859923,0.00041,2]
[324920864,1714420240719,-189.06259956,0.00041,2]
[324920866,1714420240727,-5000.0,0.00041,120]
[324920868,1714420240735,-162.0,0.00041,14]
[324920870,1714420240743,-2525.30000001,0.0004109,30]
[324920872,1714420240750,-151.13418049,0.00041095,2]
[324920874,1714420240757,-500.0,0.00041095,10]
[324920876,1714420240765,-402.56689138,0.00041096,2]
[324920878,1714420240773,-178.0504269,0.00041096,2]
[324920880,1714420240781,-1237.7995211,0.00041096,7]
[324920882,1714420240787,-506.91876456,0.00041096,31]
[324920884,1714420240794,-506.91876456,0.00041096,31]
[324920886,1714420240801,-506.91876456,0.00041096,31]
[324920888,1714420240809,-506.91876456,0.00041096,31]
[324920890,1714420240817,-506.91876456,0.00041096,31]
[324920891,1714420240823,-506.91876456,0.00041096,31]
[324920894,1714420240832,-506.91876456,0.00041096,31]
[324920895,1714420240839,-506.91876456,0.00041096,31]
[324920897,1714420240847,-506.91876456,0.00041096,31]
[324920899,1714420240855,-506.91876456,0.00041096,31]
[324920902,1714420240863,-506.91876456,0.00041096,31]
[324920904,1714420240871,-506.91876456,0.00041096,31]
[324920905,1714420240878,-506.91876456,0.00041096,31]
[324920907,1714420240886,-506.91876456,0.00041096,31]
[324920909,1714420240893,-506.91876456,0.00041096,31]
[324920911,1714420240901,-506.91876456,0.00041096,31]
[324920914,1714420240909,-506.91876456,0.00041096,31]
[324920916,1714420240916,-506.91876456,0.00041096,31]
[324920917,1714420240923,-506.91876456,0.00041096,31]
[324920920,1714420240931,-506.91876456,0.00041096,31]